[Event "Live Chess"]
[Site "Chess.com"]
[Date "2024.06.02"]
[Round "-"]
[White "Duke_of_Bebington"]
[Black "Greenbecker"]
[Result "0-1"]
[WhiteElo "1674"]
[BlackElo "1743"]
[TimeControl "300"]
[EndTime "1:14:44 PDT"]
[Termination "Greenbecker won by resignation"]

1. e4 {[%clk 0:04:57.8]} 1... Nc6 {[%clk 0:04:56.9]} 2. d4 {[%clk 0:04:55.3]}
2... d5 {[%clk 0:04:55.9]} 3. Nc3 {[%clk 0:04:51.2]} 3... dxe4 {[%clk
0:04:54.1]} 4. Nxe4 {[%clk 0:04:50.1]} 4... Qxd4 {[%clk 0:04:51.9]} 5. Qxd4
{[%clk 0:04:48.6]} 5... Nxd4 {[%clk 0:04:50.7]} 6. Bd3 {[%clk 0:04:45.3]} 6...
Nf6 {[%clk 0:04:46.1]} 7. Nxf6+ {[%clk 0:04:42.9]} 7... exf6 {[%clk 0:04:45.1]}
8. Ne2 {[%clk 0:04:41.8]} 8... Bc5 {[%clk 0:04:41.6]} 9. O-O {[%clk 0:04:33.9]}
9... Nxe2+ {[%clk 0:04:39.3]} 10. Bxe2 {[%clk 0:04:32.1]} 10... O-O {[%clk
0:04:38.4]} 11. Bf4 {[%clk 0:04:27.6]} 11... c6 {[%clk 0:04:36.6]} 12. Rad1
{[%clk 0:04:25.2]} 12... Bf5 {[%clk 0:04:34.7]} 13. Bd3 {[%clk 0:04:23.7]} 13...
Bxd3 {[%clk 0:04:32.7]} 14. Rxd3 {[%clk 0:04:23.4]} 14... Rfd8 {[%clk
0:04:31.2]} 15. Rfd1 {[%clk 0:04:22.7]} 15... Rxd3 {[%clk 0:04:28.5]} 16. Rxd3
{[%clk 0:04:22.6]} 16... Be7 {[%clk 0:04:16]} 17. Kf1 {[%clk 0:04:17.5]} 17...
Rd8 {[%clk 0:04:14]} 18. Rxd8+ {[%clk 0:04:16.2]} 18... Bxd8 {[%clk 0:04:12.5]}
19. a3 {[%clk 0:04:11.7]} 19... Kf8 {[%clk 0:04:11.3]} 20. Ke2 {[%clk
0:04:10.4]} 20... Ke8 {[%clk 0:04:10.5]} 21. Kd3 {[%clk 0:04:08]} 21... Kd7
{[%clk 0:04:10]} 22. Ke4 {[%clk 0:04:07.3]} 22... Ke6 {[%clk 0:04:08.8]} 23. f3
{[%clk 0:04:02.5]} 23... f5+ {[%clk 0:04:06.9]} 24. Kd3 {[%clk 0:03:56.9]} 24...
g5 {[%clk 0:04:00.9]} 25. Bg3 {[%clk 0:03:53.6]} 25... f4 {[%clk 0:03:52.1]} 26.
Bf2 {[%clk 0:03:52.6]} 26... Bb6 {[%clk 0:03:50.7]} 27. Bxb6 {[%clk 0:03:50]}
27... axb6 {[%clk 0:03:49.5]} 28. Ke4 {[%clk 0:03:49.6]} 28... f5+ {[%clk
0:03:46.5]} 29. Kd3 {[%clk 0:03:47.8]} 29... Ke5 {[%clk 0:03:41.6]} 30. b4
{[%clk 0:03:40.2]} 30... h5 {[%clk 0:03:40.2]} 31. c4 {[%clk 0:03:34.1]} 31...
g4 {[%clk 0:03:38.8]} 32. a4 {[%clk 0:03:25.7]} 32... h4 {[%clk 0:03:34.1]} 33.
b5 {[%clk 0:03:08.2]} 33... h3 {[%clk 0:03:32.6]} 34. gxh3 {[%clk 0:03:03.6]}
34... g3 {[%clk 0:03:30.1]} 35. hxg3 {[%clk 0:03:02.1]} 35... fxg3 {[%clk
0:03:29]} 36. Ke2 {[%clk 0:03:01.8]} 36... f4 {[%clk 0:03:13.8]} 37. h4 {[%clk
0:02:47.1]} 37... cxb5 {[%clk 0:03:11.3]} 38. cxb5 {[%clk 0:02:43.3]} 38... Kf5
{[%clk 0:03:09.7]} 39. Kf1 {[%clk 0:02:41.5]} 39... Kg6 {[%clk 0:03:08.8]} 40.
Kg2 {[%clk 0:02:41]} 40... Kh5 {[%clk 0:03:07.8]} 41. Kh3 {[%clk 0:02:40.4]}
41... Kg6 {[%clk 0:03:04.7]} 42. Kg2 {[%clk 0:02:38.2]} 42... Kh6 {[%clk
0:02:52.3]} 43. Kh3 {[%clk 0:02:31.5]} 43... Kh5 {[%clk 0:02:50.7]} 44. Kg2
{[%clk 0:02:29.3]} 44... Kxh4 {[%clk 0:02:49.8]} 0-1

[Event "Live Chess"]
[Site "Chess.com"]
[Date "2024.06.02"]
[Round "-"]
[White "MagnersCarlsberg2870"]
[Black "Ocelot32"]
[Result "1-0"]
[WhiteElo "1833"]
[BlackElo "1372"]
[TimeControl "300"]
[EndTime "1:14:54 PDT"]
[Termination "MagnersCarlsberg2870 won by resignation"]

1. d4 {[%clk 0:04:58.1]} 1... Nf6 {[%clk 0:04:58.5]} 2. Nf3 {[%clk 0:04:55.3]}
2... e6 {[%clk 0:04:57]} 3. e3 {[%clk 0:04:53.4]} 3... d5 {[%clk 0:04:54.7]} 4.
Bd3 {[%clk 0:04:52.5]} 4... c5 {[%clk 0:04:53.6]} 5. c3 {[%clk 0:04:51.3]} 5...
Nc6 {[%clk 0:04:49.9]} 6. Nbd2 {[%clk 0:04:50.1]} 6... Be7 {[%clk 0:04:39.1]} 7.
Qe2 {[%clk 0:04:48.4]} 7... O-O {[%clk 0:04:35.7]} 8. O-O {[%clk 0:04:47.4]}
8... b6 {[%clk 0:04:34.1]} 9. e4 {[%clk 0:04:45.5]} 9... dxe4 {[%clk 0:04:32.5]}
10. Nxe4 {[%clk 0:04:44.8]} 10... cxd4 {[%clk 0:04:28.8]} 11. Nxf6+ {[%clk
0:04:42.9]} 11... Bxf6 {[%clk 0:04:27.3]} 12. Qe4 {[%clk 0:04:42]} 12... g6
{[%clk 0:04:07.8]} 13. Qxc6 {[%clk 0:04:40.5]} 13... e5 {[%clk 0:04:05.5]} 14.
Bh6 {[%clk 0:04:36.3]} 14... Re8 {[%clk 0:04:01.4]} 15. cxd4 {[%clk 0:04:32.4]}
15... e4 {[%clk 0:03:57.8]} 16. Bxe4 {[%clk 0:04:24.9]} 1-0

[Event "Live Chess"]
[Site "Chess.com"]
[Date "2024.06.02"]
[Round "-"]
[White "LL220284LL"]
[Black "stevochess11"]
[Result "1-0"]
[WhiteElo "2501"]
[BlackElo "1683"]
[TimeControl "300"]
[EndTime "1:14:58 PDT"]
[Termination "LL220284LL won by checkmate"]

1. Nf3 {[%clk 0:04:58.1]} 1... c6 {[%clk 0:04:57.6]} 2. b3 {[%clk 0:04:57.6]}
2... d5 {[%clk 0:04:55.6]} 3. Bb2 {[%clk 0:04:57]} 3... Nd7 {[%clk 0:04:53.5]}
4. g3 {[%clk 0:04:56.5]} 4... f6 {[%clk 0:04:51.7]} 5. Bg2 {[%clk 0:04:56]} 5...
g6 {[%clk 0:04:50.6]} 6. d4 {[%clk 0:04:55]} 6... Nh6 {[%clk 0:04:48.5]} 7. O-O
{[%clk 0:04:54.3]} 7... Nf7 {[%clk 0:04:47.4]} 8. Nbd2 {[%clk 0:04:53.8]} 8...
Bg7 {[%clk 0:04:45.7]} 9. e4 {[%clk 0:04:53.3]} 9... e5 {[%clk 0:04:44]} 10.
dxe5 {[%clk 0:04:48.7]} 10... fxe5 {[%clk 0:04:43.1]} 11. exd5 {[%clk
0:04:45.2]} 11... cxd5 {[%clk 0:04:41.7]} 12. Re1 {[%clk 0:04:44.6]} 12... O-O
{[%clk 0:04:38.7]} 13. c4 {[%clk 0:04:37.4]} 13... e4 {[%clk 0:04:34.8]} 14.
Bxg7 {[%clk 0:04:35.3]} 14... Kxg7 {[%clk 0:04:32.8]} 15. Nd4 {[%clk 0:04:26.5]}
15... Qf6 {[%clk 0:04:24.7]} 16. Nf1 {[%clk 0:04:19.1]} 16... Ng5 {[%clk
0:04:20.1]} 17. Re2 {[%clk 0:03:50.1]} 17... Ne5 {[%clk 0:04:12]} 18. Ne3 {[%clk
0:03:41.2]} 18... Bh3 {[%clk 0:03:57.2]} 19. Nxd5 {[%clk 0:03:05.5]} 19... Nef3+
{[%clk 0:03:48.5]} 20. Nxf3 {[%clk 0:02:48.5]} 20... Nxf3+ {[%clk 0:03:46.8]}
21. Kh1 {[%clk 0:02:41.6]} 21... Bxg2+ {[%clk 0:03:26.4]} 22. Kxg2 {[%clk
0:02:40.3]} 22... Qf5 {[%clk 0:03:08.2]} 23. Qc2 {[%clk 0:02:29.3]} 23... Rae8
{[%clk 0:02:57.1]} 24. Qc3+ {[%clk 0:02:25.2]} 24... Kh6 {[%clk 0:02:53.9]} 25.
Qe3+ {[%clk 0:02:20.9]} 25... g5 {[%clk 0:02:51.7]} 26. Rd1 {[%clk 0:02:07.2]}
26... Ne5 {[%clk 0:02:41.2]} 27. Qxe4 {[%clk 0:01:58.6]} 27... Qxe4+ {[%clk
0:02:32]} 28. Rxe4 {[%clk 0:01:58.5]} 28... g4 {[%clk 0:02:26.2]} 29. Rde1
{[%clk 0:01:54.4]} 29... Rf5 {[%clk 0:02:18.3]} 30. Ne3 {[%clk 0:01:40.3]} 30...
Rf3 {[%clk 0:02:12.4]} 31. Rxe5 {[%clk 0:01:36.7]} 31... Rxe5 {[%clk 0:02:10.1]}
32. Nxg4+ {[%clk 0:01:35.7]} 32... Kg5 {[%clk 0:02:06.9]} 33. Rxe5+ {[%clk
0:01:33.7]} 33... Kxg4 {[%clk 0:02:05.9]} 34. h3# {[%clk 0:01:33]} 1-0

[Event "Live Chess"]
[Site "Chess.com"]
[Date "2024.06.02"]
[Round "-"]
[White "Crowded_House"]
[Black "JohanKjeldahl"]
[Result "1-0"]
[WhiteElo "1657"]
[BlackElo "1849"]
[TimeControl "300"]
[EndTime "1:15:13 PDT"]
[Termination "Crowded_House won by resignation"]

1. d4 {[%clk 0:04:57.4]} 1... Nf6 {[%clk 0:04:58.3]} 2. Bg5 {[%clk 0:04:56.6]}
2... e6 {[%clk 0:04:57]} 3. e3 {[%clk 0:04:54.9]} 3... c5 {[%clk 0:04:55.7]} 4.
c3 {[%clk 0:04:51.4]} 4... cxd4 {[%clk 0:04:53.4]} 5. exd4 {[%clk 0:04:49.2]}
5... d5 {[%clk 0:04:50.7]} 6. Bd3 {[%clk 0:04:48.1]} 6... Be7 {[%clk 0:04:49.3]}
7. Nf3 {[%clk 0:04:45]} 7... h6 {[%clk 0:04:48.4]} 8. Bh4 {[%clk 0:04:43]} 8...
Nc6 {[%clk 0:04:47]} 9. Nbd2 {[%clk 0:04:40.9]} 9... Qb6 {[%clk 0:04:45.5]} 10.
Nb3 {[%clk 0:04:38.5]} 10... Bd7 {[%clk 0:04:39.5]} 11. O-O {[%clk 0:04:36.9]}
11... Ne4 {[%clk 0:04:31.1]} 12. Bxe7 {[%clk 0:04:32.7]} 12... Nxe7 {[%clk
0:04:28.9]} 13. Ne5 {[%clk 0:04:24.7]} 13... f6 {[%clk 0:04:17.6]} 14. Nxd7
{[%clk 0:04:23]} 14... Kxd7 {[%clk 0:04:16.1]} 15. f3 {[%clk 0:04:20.3]} 15...
Ng5 {[%clk 0:04:07.3]} 16. Nc5+ {[%clk 0:04:18.6]} 16... Kd6 {[%clk 0:04:04.5]}
17. h4 {[%clk 0:04:07.6]} 17... Nf7 {[%clk 0:04:01.5]} 18. Re1 {[%clk
0:04:05.1]} 18... e5 {[%clk 0:04:00.5]} 19. dxe5+ {[%clk 0:03:54.4]} 19... Kxc5
{[%clk 0:03:57.4]} 20. exf6 {[%clk 0:03:49.9]} 20... Qxf6 {[%clk 0:03:53.9]} 21.
Qa4 {[%clk 0:03:32.4]} 21... Kd6 {[%clk 0:03:44.1]} 22. Qb4+ {[%clk 0:03:26.7]}
22... Kc7 {[%clk 0:03:36.3]} 23. Qxe7+ {[%clk 0:03:19.7]} 1-0

[Event "Live Chess"]
[Site "Chess.com"]
[Date "2024.06.02"]
[Round "-"]
[White "ProfessorChess101"]
[Black "MaksymYurii"]
[Result "1-0"]
[WhiteElo "2731"]
[BlackElo "982"]
[TimeControl "300"]
[EndTime "1:15:36 PDT"]
[Termination "ProfessorChess101 won by checkmate"]

1. e4 {[%clk 0:04:58.3]} 1... e5 {[%clk 0:04:59.3]} 2. Nf3 {[%clk 0:04:56.9]}
2... Nc6 {[%clk 0:04:58.2]} 3. Bc4 {[%clk 0:04:56.4]} 3... d5 {[%clk 0:04:54.3]}
4. Bxd5 {[%clk 0:04:55.2]} 4... Nb4 {[%clk 0:04:49.7]} 5. Bb3 {[%clk 0:04:52.8]}
5... Be6 {[%clk 0:04:42.5]} 6. Bxe6 {[%clk 0:04:45.2]} 6... fxe6 {[%clk
0:04:42.4]} 7. Nxe5 {[%clk 0:04:45]} 7... Bd6 {[%clk 0:04:36.7]} 8. Qh5+ {[%clk
0:04:41.2]} 8... g6 {[%clk 0:04:33.3]} 9. Nxg6 {[%clk 0:04:39.9]} 9... Nxc2+
{[%clk 0:04:24.5]} 10. Kd1 {[%clk 0:04:38.5]} 10... hxg6 {[%clk 0:04:02]} 11.
Qxh8 {[%clk 0:04:31]} 11... Nxa1 {[%clk 0:03:51]} 12. Qxg8+ {[%clk 0:04:29]}
12... Bf8 {[%clk 0:03:49.1]} 13. Qxg6+ {[%clk 0:04:23.3]} 13... Kd7 {[%clk
0:03:45.9]} 14. b3 {[%clk 0:04:10.8]} 14... Qe7 {[%clk 0:03:24.1]} 15. Ba3
{[%clk 0:03:58.9]} 15... Qg7 {[%clk 0:03:03.8]} 16. Qxg7+ {[%clk 0:03:52.1]}
16... Bxg7 {[%clk 0:03:01.3]} 17. Nc3 {[%clk 0:03:51.5]} 17... Rf8 {[%clk
0:02:56.9]} 18. f3 {[%clk 0:03:47.6]} 18... Rg8 {[%clk 0:02:51.1]} 19. Bb2
{[%clk 0:03:42.4]} 19... Nxb3 {[%clk 0:02:32]} 20. axb3 {[%clk 0:03:39.6]} 20...
a5 {[%clk 0:02:27.2]} 21. h4 {[%clk 0:03:37.9]} 21... b5 {[%clk 0:02:22.1]} 22.
h5 {[%clk 0:03:34.1]} 22... b4 {[%clk 0:02:20.7]} 23. Na4 {[%clk 0:03:33.5]}
23... Bxb2 {[%clk 0:02:17.2]} 24. Nxb2 {[%clk 0:03:33.4]} 24... Rxg2 {[%clk
0:02:13.7]} 25. h6 {[%clk 0:03:32.5]} 25... Rg8 {[%clk 0:02:07.7]} 26. h7 {[%clk
0:03:31.7]} 26... Rh8 {[%clk 0:02:06.5]} 27. Nc4 {[%clk 0:03:31.6]} 27... Ke7
{[%clk 0:02:05.3]} 28. Nxa5 {[%clk 0:03:30.3]} 28... Kf7 {[%clk 0:02:04.1]} 29.
Nc6 {[%clk 0:03:30]} 29... Kg7 {[%clk 0:02:03.4]} 30. Nxb4 {[%clk 0:03:29.6]}
30... Rxh7 {[%clk 0:02:02.2]} 31. Rxh7+ {[%clk 0:03:29.5]} 31... Kxh7 {[%clk
0:02:01.3]} 32. Na6 {[%clk 0:03:29.4]} 32... c6 {[%clk 0:01:59.5]} 33. Nb8
{[%clk 0:03:28.6]} 33... c5 {[%clk 0:01:57.9]} 34. Nd7 {[%clk 0:03:28.3]} 34...
Kg6 {[%clk 0:01:50.6]} 35. Nxc5 {[%clk 0:03:27.5]} 35... Kg5 {[%clk 0:01:49.7]}
36. b4 {[%clk 0:03:27.4]} 36... e5 {[%clk 0:01:47.4]} 37. Nd3 {[%clk 0:03:25.6]}
37... Kf6 {[%clk 0:01:44.6]} 38. b5 {[%clk 0:03:24]} 38... Ke7 {[%clk
0:01:44.3]} 39. b6 {[%clk 0:03:23.9]} 39... Kd8 {[%clk 0:01:43.6]} 40. Nxe5
{[%clk 0:03:23.4]} 40... Kc8 {[%clk 0:01:42.8]} 41. Nc4 {[%clk 0:03:22.8]} 41...
Kb7 {[%clk 0:01:42]} 42. f4 {[%clk 0:03:21.9]} 42... Kc6 {[%clk 0:01:41.3]} 43.
f5 {[%clk 0:03:21.8]} 43... Kc5 {[%clk 0:01:40.1]} 44. f6 {[%clk 0:03:21.7]}
44... Kxc4 {[%clk 0:01:39.4]} 45. f7 {[%clk 0:03:21.6]} 45... Kc5 {[%clk
0:01:38.7]} 46. b7 {[%clk 0:03:21.5]} 46... Kd4 {[%clk 0:01:37.3]} 47. f8=Q
{[%clk 0:03:20.7]} 47... Kd3 {[%clk 0:01:36.6]} 48. Qd6+ {[%clk 0:03:19.3]}
48... Kxe4 {[%clk 0:01:32.8]} 49. Qe6+ {[%clk 0:03:18.6]} 49... Kf3 {[%clk
0:01:31.7]} 50. Qf5+ {[%clk 0:03:17.1]} 50... Kg3 {[%clk 0:01:30.4]} 51. b8=Q+
{[%clk 0:03:15.6]} 51... Kh4 {[%clk 0:01:23.1]} 52. Qh8+ {[%clk 0:03:13.5]}
52... Kg3 {[%clk 0:01:21.6]} 53. Qhh3# {[%clk 0:03:13.4]} 1-0

[Event "Live Chess"]
[Site "Chess.com"]
[Date "2024.06.02"]
[Round "-"]
[White "TheSmoulderingMaster"]
[Black "yarek"]
[Result "0-1"]
[WhiteElo "1745"]
[BlackElo "1734"]
[TimeControl "300"]
[EndTime "1:15:48 PDT"]
[Termination "yarek won by resignation"]

1. e4 {[%clk 0:04:56]} 1... g6 {[%clk 0:04:59.5]} 2. d4 {[%clk 0:04:54.5]} 2...
Bg7 {[%clk 0:04:59.1]} 3. Nc3 {[%clk 0:04:52.8]} 3... c6 {[%clk 0:04:58.6]} 4.
Nf3 {[%clk 0:04:51.2]} 4... d5 {[%clk 0:04:58.1]} 5. e5 {[%clk 0:04:49.3]} 5...
Bg4 {[%clk 0:04:55.9]} 6. Be2 {[%clk 0:04:47.6]} 6... e6 {[%clk 0:04:53.8]} 7.
h3 {[%clk 0:04:45.7]} 7... Bxf3 {[%clk 0:04:51]} 8. Bxf3 {[%clk 0:04:44.3]} 8...
Ne7 {[%clk 0:04:49.5]} 9. Bg5 {[%clk 0:04:41.5]} 9... Nd7 {[%clk 0:04:47.6]} 10.
Qd2 {[%clk 0:04:39.6]} 10... h6 {[%clk 0:04:40.5]} 11. Be3 {[%clk 0:04:35.7]}
11... Nf5 {[%clk 0:04:34.5]} 12. O-O-O {[%clk 0:04:31.2]} 12... Nxe3 {[%clk
0:04:18.1]} 13. Qxe3 {[%clk 0:04:29.2]} 13... a6 {[%clk 0:04:11.5]} 14. Kb1
{[%clk 0:04:17.9]} 14... c5 {[%clk 0:04:09.5]} 15. dxc5 {[%clk 0:04:16.2]} 15...
Nxe5 {[%clk 0:04:03.3]} 16. Rhe1 {[%clk 0:04:11.7]} 16... O-O {[%clk 0:03:51]}
17. g4 {[%clk 0:04:01.2]} 17... Nxf3 {[%clk 0:03:46.9]} 18. Qxf3 {[%clk
0:03:58.4]} 18... Rc8 {[%clk 0:03:41]} 19. Rh1 {[%clk 0:03:50.7]} 19... Rxc5
{[%clk 0:03:35.5]} 20. h4 {[%clk 0:03:48.2]} 20... Bxc3 {[%clk 0:03:11.7]} 21.
bxc3 {[%clk 0:03:45]} 21... Qa5 {[%clk 0:02:58.2]} 22. Qe3 {[%clk 0:03:37.3]}
22... Qxc3 {[%clk 0:02:49.7]} 23. Qxc3 {[%clk 0:03:27.6]} 23... Rxc3 {[%clk
0:02:49.6]} 24. Rd3 {[%clk 0:03:22.8]} 24... Rfc8 {[%clk 0:02:44.1]} 25. Rd2
{[%clk 0:03:19.3]} 25... b5 {[%clk 0:02:38.1]} 26. f4 {[%clk 0:03:12.5]} 26...
Rf3 {[%clk 0:02:27.7]} 27. f5 {[%clk 0:03:07]} 27... gxf5 {[%clk 0:02:23.8]} 28.
gxf5 {[%clk 0:03:05.8]} 28... Rxf5 {[%clk 0:02:21]} 29. Rg2+ {[%clk 0:03:03.8]}
29... Kh7 {[%clk 0:02:19.8]} 30. Rhg1 {[%clk 0:03:02.2]} 30... Rf6 {[%clk
0:02:04.1]} 31. Rg7+ {[%clk 0:02:59]} 31... Kh8 {[%clk 0:02:03.6]} 32. h5 {[%clk
0:02:51.6]} 32... Rf5 {[%clk 0:01:48.6]} 33. Kb2 {[%clk 0:02:44.6]} 33... Rg5
{[%clk 0:01:46.8]} 34. R1xg5 {[%clk 0:02:37.1]} 34... hxg5 {[%clk 0:01:46.7]}
35. Rxg5 {[%clk 0:02:36.3]} 35... Kh7 {[%clk 0:01:44.4]} 36. Rg3 {[%clk
0:02:32.8]} 36... Kh6 {[%clk 0:01:43.2]} 37. Rh3 {[%clk 0:02:31.9]} 37... e5
{[%clk 0:01:40.5]} 38. Kc1 {[%clk 0:02:30]} 38... e4 {[%clk 0:01:39.9]} 39. Kd2
{[%clk 0:02:29.3]} 39... d4 {[%clk 0:01:39.1]} 40. Rh4 {[%clk 0:02:27.2]} 40...
f5 {[%clk 0:01:33.9]} 0-1

[Event "Live Chess"]
[Site "Chess.com"]
[Date "2024.06.02"]
[Round "-"]
[White "ProfPoisson"]
[Black "KeithArkell"]
[Result "0-1"]
[WhiteElo "1348"]
[BlackElo "2397"]
[TimeControl "300"]
[EndTime "1:15:52 PDT"]
[Termination "KeithArkell won by resignation"]

1. e4 {[%clk 0:04:54]} 1... c6 {[%clk 0:04:58.9]} 2. d4 {[%clk 0:04:51.6]} 2...
d5 {[%clk 0:04:58.1]} 3. exd5 {[%clk 0:04:50.2]} 3... cxd5 {[%clk 0:04:57.6]} 4.
c4 {[%clk 0:04:48.7]} 4... Nf6 {[%clk 0:04:57.1]} 5. Nc3 {[%clk 0:04:46.6]} 5...
g6 {[%clk 0:04:56.7]} 6. Qb3 {[%clk 0:04:43.6]} 6... Bg7 {[%clk 0:04:55.7]} 7.
cxd5 {[%clk 0:04:38.6]} 7... O-O {[%clk 0:04:54.7]} 8. Nf3 {[%clk 0:04:36.9]}
8... Nbd7 {[%clk 0:04:50.7]} 9. Bc4 {[%clk 0:04:34.5]} 9... Nb6 {[%clk
0:04:49.6]} 10. O-O {[%clk 0:04:32.4]} 10... Nxc4 {[%clk 0:04:48.7]} 11. Qxc4
{[%clk 0:04:30.2]} 11... a6 {[%clk 0:04:48.2]} 12. a4 {[%clk 0:04:27.6]} 12...
b5 {[%clk 0:04:47.6]} 13. axb5 {[%clk 0:04:25.6]} 13... axb5 {[%clk 0:04:47]}
14. Nxb5 {[%clk 0:04:08.5]} 14... Rxa1 {[%clk 0:04:45.4]} 15. d6 {[%clk
0:04:02.6]} 15... exd6 {[%clk 0:04:41.5]} 16. Bg5 {[%clk 0:03:51]} 16... Rxf1+
{[%clk 0:04:41.4]} 17. Kxf1 {[%clk 0:03:48.6]} 17... Ba6 {[%clk 0:04:40.4]} 18.
Bxf6 {[%clk 0:03:38.2]} 18... Qb6 {[%clk 0:04:38.1]} 19. Bxg7 {[%clk 0:03:30.2]}
19... Bxb5 {[%clk 0:04:36.8]} 0-1

[Event "Live Chess"]
[Site "Chess.com"]
[Date "2024.06.02"]
[Round "-"]
[White "EdenHazard8"]
[Black "juniortay"]
[Result "1-0"]
[WhiteElo "2189"]
[BlackElo "2385"]
[TimeControl "300"]
[EndTime "1:15:55 PDT"]
[Termination "EdenHazard8 won on time"]

1. Nf3 {[%clk 0:04:58]} 1... Nf6 {[%clk 0:04:58.3]} 2. g3 {[%clk 0:04:57.1]}
2... g6 {[%clk 0:04:58]} 3. Bg2 {[%clk 0:04:56.2]} 3... Bg7 {[%clk 0:04:57.9]}
4. Kf1 {[%clk 0:04:55]} 4... O-O {[%clk 0:04:57.8]} 5. Kg1 {[%clk 0:04:49.4]}
5... d6 {[%clk 0:04:57.7]} 6. h3 {[%clk 0:04:47.7]} 6... c6 {[%clk 0:04:56.7]}
7. d4 {[%clk 0:04:46.5]} 7... Nbd7 {[%clk 0:04:53.8]} 8. Kh2 {[%clk 0:04:44.7]}
8... Re8 {[%clk 0:04:51.3]} 9. Re1 {[%clk 0:04:42.3]} 9... e5 {[%clk 0:04:50.2]}
10. dxe5 {[%clk 0:04:36.6]} 10... Nxe5 {[%clk 0:04:49.6]} 11. Nxe5 {[%clk
0:04:35.5]} 11... Rxe5 {[%clk 0:04:47.6]} 12. Bf4 {[%clk 0:04:34.2]} 12... Re6
{[%clk 0:04:46.9]} 13. Nc3 {[%clk 0:04:30]} 13... d5 {[%clk 0:04:46.1]} 14. e4
{[%clk 0:04:24.5]} 14... d4 {[%clk 0:04:39.9]} 15. e5 {[%clk 0:04:22.6]} 15...
Nh5 {[%clk 0:04:34.8]} 16. Ne4 {[%clk 0:03:56.4]} 16... Nxf4 {[%clk 0:04:20.8]}
17. gxf4 {[%clk 0:03:56.3]} 17... c5 {[%clk 0:04:12.2]} 18. Nxc5 {[%clk
0:03:51.9]} 18... Rb6 {[%clk 0:04:11.1]} 19. Nb3 {[%clk 0:03:44.5]} 19... Bf5
{[%clk 0:04:03.4]} 20. Nxd4 {[%clk 0:03:42.8]} 20... Qh4 {[%clk 0:04:02]} 21.
Nxf5 {[%clk 0:03:40.5]} 21... gxf5 {[%clk 0:04:00]} 22. Qd4 {[%clk 0:03:38.1]}
22... Bh6 {[%clk 0:03:58.3]} 23. Rg1 {[%clk 0:03:30]} 23... Qxf4+ {[%clk
0:03:44.4]} 24. Qxf4 {[%clk 0:03:27.9]} 24... Bxf4+ {[%clk 0:03:44.3]} 25. Kh1
{[%clk 0:03:27.1]} 25... Kf8 {[%clk 0:03:44.2]} 26. b3 {[%clk 0:03:19.5]} 26...
Bxe5 {[%clk 0:03:41.1]} 27. Rad1 {[%clk 0:03:17.5]} 27... Rd6 {[%clk 0:03:17.7]}
28. Rxd6 {[%clk 0:03:14.1]} 28... Bxd6 {[%clk 0:03:17.6]} 29. Bxb7 {[%clk
0:03:13.3]} 29... Re8 {[%clk 0:03:13.3]} 30. Bf3 {[%clk 0:03:10.1]} 30... Bc5
{[%clk 0:03:09.5]} 31. Kg2 {[%clk 0:02:57.7]} 31... Re5 {[%clk 0:03:02.2]} 32.
Rd1 {[%clk 0:02:53.6]} 32... Ke7 {[%clk 0:03:00.7]} 33. Rd5 {[%clk 0:02:49.3]}
33... Bd6 {[%clk 0:02:54.8]} 34. Rd4 {[%clk 0:02:39.8]} 34... Bc5 {[%clk
0:02:49]} 35. Rh4 {[%clk 0:02:37.1]} 35... a5 {[%clk 0:01:59.7]} 36. Rxh7 {[%clk
0:02:33.1]} 36... Kf6 {[%clk 0:01:40.5]} 37. Bh5 {[%clk 0:02:16.3]} 37... Re7
{[%clk 0:01:37.8]} 38. Bf3 {[%clk 0:02:05.7]} 38... Ke5 {[%clk 0:01:32.2]} 39.
Rh4 {[%clk 0:02:03]} 39... Rd7 {[%clk 0:01:22.1]} 40. Rc4 {[%clk 0:02:00]} 40...
Ba7 {[%clk 0:01:18.1]} 41. Be2 {[%clk 0:01:41.3]} 41... f6 {[%clk 0:00:38.7]}
42. f4+ {[%clk 0:01:33.3]} 42... Ke6 {[%clk 0:00:33.8]} 43. h4 {[%clk
0:01:29.2]} 43... Rg7+ {[%clk 0:00:26.2]} 44. Kf3 {[%clk 0:01:27.2]} 44... Rg1
{[%clk 0:00:24.7]} 45. h5 {[%clk 0:01:22.7]} 45... Rh1 {[%clk 0:00:15.8]} 46.
Rc6+ {[%clk 0:01:13.6]} 46... Kd5 {[%clk 0:00:14.6]} 47. Rxf6 {[%clk 0:01:11]}
47... Rxh5 {[%clk 0:00:11.6]} 48. Ra6 {[%clk 0:01:09.8]} 48... Bd4 {[%clk
0:00:05.6]} 49. Rxa5+ {[%clk 0:01:08.6]} 49... Ke6 {[%clk 0:00:05.2]} 50. Bc4+
{[%clk 0:01:07.6]} 50... Kd7 {[%clk 0:00:02.9]} 51. Ra6 {[%clk 0:01:01.8]} 1-0

[Event "Live Chess"]
[Site "Chess.com"]
[Date "2024.06.02"]
[Round "-"]
[White "jimwad"]
[Black "WeakOldFinished"]
[Result "0-1"]
[WhiteElo "1316"]
[BlackElo "2175"]
[TimeControl "300"]
[EndTime "1:16:05 PDT"]
[Termination "WeakOldFinished won by resignation"]

1. d4 {[%clk 0:04:57.6]} 1... d5 {[%clk 0:04:56.4]} 2. c4 {[%clk 0:04:55.1]}
2... e5 {[%clk 0:04:54.5]} 3. dxe5 {[%clk 0:04:53.1]} 3... d4 {[%clk 0:04:52.9]}
4. e3 {[%clk 0:04:50.4]} 4... Bb4+ {[%clk 0:04:50.2]} 5. Bd2 {[%clk 0:04:47.2]}
5... dxe3 {[%clk 0:04:46.4]} 6. Bxb4 {[%clk 0:04:45.7]} 6... exf2+ {[%clk
0:04:45.8]} 7. Ke2 {[%clk 0:04:32.2]} 7... fxg1=N+ {[%clk 0:04:43.8]} 8. Rxg1
{[%clk 0:04:31.2]} 8... Bg4+ {[%clk 0:04:38.2]} 9. Kf2 {[%clk 0:04:18.6]} 9...
Qd4+ {[%clk 0:04:32]} 10. Kg3 {[%clk 0:04:15.4]} 10... Bxd1 {[%clk 0:04:26.7]}
0-1